[Event "*** Titled Tuesday Blitz"]
[Site "Chess.com"]
[Date "2020.10.27"]
[Round "9"]
[White "eljanov"]
[Black "esapunov"]
[Result "0-1"]
[WhiteElo "2859"]
[BlackElo "2700"]
[TimeControl "180+1"]
[EndTime "11:45:50 PDT"]
[Termination "esapunov won on time"]

1. e4 {[%clk 0:03:00.9]} 1... c5 {[%clk 0:02:59.4]} 2. Nf3 {[%clk 0:03:00.7]}
2... d6 {[%clk 0:02:59.2]} 3. Bb5+ {[%clk 0:03:00.5]} 3... Bd7 {[%clk
0:02:58.5]} 4. Bxd7+ {[%clk 0:03:00.4]} 4... Qxd7 {[%clk 0:02:58.6]} 5. c4
{[%clk 0:03:00.6]} 5... Nc6 {[%clk 0:02:56.1]} 6. Nc3 {[%clk 0:03:00.5]} 6... g6
{[%clk 0:02:54]} 7. d4 {[%clk 0:03:00.7]} 7... cxd4 {[%clk 0:02:51.4]} 8. Nxd4
{[%clk 0:03:01.6]} 8... Bg7 {[%clk 0:02:51.9]} 9. Be3 {[%clk 0:03:02.1]} 9...
Nf6 {[%clk 0:02:52.1]} 10. f3 {[%clk 0:03:02.1]} 10... O-O {[%clk 0:02:52]} 11.
O-O {[%clk 0:03:02.3]} 11... a6 {[%clk 0:02:47.2]} 12. Qd3 {[%clk 0:03:01.3]}
12... Rac8 {[%clk 0:02:43.5]} 13. b3 {[%clk 0:02:56.2]} 13... e6 {[%clk
0:02:39.1]} 14. Nxc6 {[%clk 0:02:31.5]} 14... Rxc6 {[%clk 0:02:29.7]} 15. a4
{[%clk 0:02:19.1]} 15... Qe7 {[%clk 0:02:19.1]} 16. a5 {[%clk 0:01:51]} 16...
Nd7 {[%clk 0:02:06.9]} 17. Qd2 {[%clk 0:01:51.1]} 17... Rfc8 {[%clk 0:02:01.7]}
18. Bd4 {[%clk 0:01:36.3]} 18... Nc5 {[%clk 0:01:57.3]} 19. Rfb1 {[%clk
0:01:31]} 19... Bxd4+ {[%clk 0:01:52]} 20. Qxd4 {[%clk 0:01:30.9]} 20... Qg5
{[%clk 0:01:52.2]} 21. Ne2 {[%clk 0:01:14.7]} 21... e5 {[%clk 0:01:43.2]} 22.
Qf2 {[%clk 0:00:59]} 22... Nd3 {[%clk 0:01:38.6]} 23. h4 {[%clk 0:00:51.7]}
23... Qh6 {[%clk 0:01:36.4]} 24. Qg3 {[%clk 0:00:41.6]} 24... Qe3+ {[%clk
0:01:35.7]} 25. Kf1 {[%clk 0:00:41.9]} 25... b6 {[%clk 0:01:27.1]} 26. Nc3
{[%clk 0:00:35.5]} 26... Nf4 {[%clk 0:01:17.6]} 27. Nd5 {[%clk 0:00:34.9]} 27...
Qd3+ {[%clk 0:01:00.7]} 28. Kf2 {[%clk 0:00:35.3]} 28... Qd4+ {[%clk 0:00:50.3]}
29. Kf1 {[%clk 0:00:33.4]} 29... Rxc4 {[%clk 0:00:45.4]} 30. Rd1 {[%clk
0:00:19.5]} 30... Rc1 {[%clk 0:00:33.1]} 31. Raxc1 {[%clk 0:00:15.2]} 31... Rxc1
{[%clk 0:00:33.1]} 32. Rxc1 {[%clk 0:00:10.7]} 32... Qd3+ {[%clk 0:00:33.1]} 33.
Kg1 {[%clk 0:00:09.2]} 33... Ne2+ {[%clk 0:00:30.3]} 34. Kh2 {[%clk 0:00:09.6]}
34... Nxg3 {[%clk 0:00:30.3]} 35. Kxg3 {[%clk 0:00:09]} 35... bxa5 {[%clk
0:00:29.4]} 36. Rc3 {[%clk 0:00:06.7]} 36... Qb5 {[%clk 0:00:27.3]} 37. h5
{[%clk 0:00:04.7]} 37... Kg7 {[%clk 0:00:27.1]} 38. Rc7 {[%clk 0:00:02.7]} 38...
gxh5 {[%clk 0:00:25.6]} 39. Ne7 {[%clk 0:00:02.6]} 39... Qxb3 {[%clk 0:00:19.6]}
40. Nf5+ {[%clk 0:00:02.8]} 40... Kg6 {[%clk 0:00:18.3]} 41. Rd7 {[%clk
0:00:03.1]} 41... Kg5 {[%clk 0:00:12.4]} 0-1

[Event "*** Titled Tuesday Blitz"]
[Site "Chess.com"]
[Date "2020.10.27"]
[Round "9"]
[White "Paladin61"]
[Black "Th3_Hound"]
[Result "0-1"]
[WhiteElo "2587"]
[BlackElo "2510"]
[TimeControl "180+1"]
[EndTime "11:45:50 PDT"]
[Termination "Th3_Hound won by checkmate"]

1. b3 {[%clk 0:03:00.9]} 1... Nf6 {[%clk 0:02:57.5]} 2. Bb2 {[%clk 0:03:01.8]}
2... g6 {[%clk 0:02:57.4]} 3. Bxf6 {[%clk 0:03:02.3]} 3... exf6 {[%clk
0:02:58.3]} 4. c4 {[%clk 0:03:02.1]} 4... Bg7 {[%clk 0:02:58.3]} 5. Nc3 {[%clk
0:03:02.4]} 5... O-O {[%clk 0:02:58.8]} 6. g3 {[%clk 0:03:01.5]} 6... d6 {[%clk
0:02:58.9]} 7. e3 {[%clk 0:02:58.4]} 7... f5 {[%clk 0:02:59.3]} 8. Nge2 {[%clk
0:02:57.4]} 8... Nd7 {[%clk 0:02:59.7]} 9. d4 {[%clk 0:02:54.9]} 9... a6 {[%clk
0:02:59.4]} 10. Bg2 {[%clk 0:02:54.9]} 10... Rb8 {[%clk 0:02:59]} 11. Qd3 {[%clk
0:02:52.4]} 11... Nf6 {[%clk 0:02:42.9]} 12. O-O {[%clk 0:02:49.1]} 12... Re8
{[%clk 0:02:41.2]} 13. b4 {[%clk 0:02:41.5]} 13... c6 {[%clk 0:02:34.4]} 14. a4
{[%clk 0:02:31.9]} 14... Bd7 {[%clk 0:02:34]} 15. a5 {[%clk 0:02:29.2]} 15...
Qe7 {[%clk 0:02:25.6]} 16. Na4 {[%clk 0:02:23.1]} 16... d5 {[%clk 0:02:14]} 17.
Nb6 {[%clk 0:02:03.1]} 17... dxc4 {[%clk 0:02:12.1]} 18. Qxc4 {[%clk 0:02:01.8]}
18... Be6 {[%clk 0:02:10.7]} 19. Qc5 {[%clk 0:01:57.9]} 19... Qd8 {[%clk
0:02:05.1]} 20. Nf4 {[%clk 0:01:55]} 20... Bf8 {[%clk 0:02:02.5]} 21. Qc3 {[%clk
0:01:45.3]} 21... Nd7 {[%clk 0:02:01]} 22. Na4 {[%clk 0:01:42]} 22... Nf6 {[%clk
0:01:53.1]} 23. Nc5 {[%clk 0:01:12.3]} 23... Bd5 {[%clk 0:01:41.1]} 24. Nxd5
{[%clk 0:01:08]} 24... Nxd5 {[%clk 0:01:41]} 25. Qc4 {[%clk 0:01:05.7]} 25...
Nf6 {[%clk 0:01:38.4]} 26. Rfd1 {[%clk 0:01:04.1]} 26... Qc7 {[%clk 0:01:33.5]}
27. Ra2 {[%clk 0:00:55.4]} 27... Rbd8 {[%clk 0:01:33.2]} 28. Rad2 {[%clk
0:00:53.6]} 28... Nd5 {[%clk 0:01:29.6]} 29. Bf3 {[%clk 0:00:48.2]} 29... h5
{[%clk 0:01:27.6]} 30. Kg2 {[%clk 0:00:45.8]} 30... Rxe3 {[%clk 0:01:12.6]} 31.
Nxa6 {[%clk 0:00:42.5]} 31... Qe7 {[%clk 0:00:46.9]} 32. Nc5 {[%clk 0:00:42]}
32... Rxf3 {[%clk 0:00:33.3]} 33. Kxf3 {[%clk 0:00:41.2]} 33... Qg5 {[%clk
0:00:33.3]} 34. h3 {[%clk 0:00:30.9]} 34... h4 {[%clk 0:00:29.9]} 35. Re2 {[%clk
0:00:08.9]} 35... hxg3 {[%clk 0:00:26.4]} 36. fxg3 {[%clk 0:00:09.8]} 36... Bd6
{[%clk 0:00:25.9]} 37. Rg1 {[%clk 0:00:08.6]} 37... Qh5+ {[%clk 0:00:18.9]} 38.
Kg2 {[%clk 0:00:08.1]} 38... f4 {[%clk 0:00:15.9]} 39. Qb3 {[%clk 0:00:03.9]}
39... Qxe2+ {[%clk 0:00:13.1]} 40. Kh1 {[%clk 0:00:02.8]} 40... fxg3 {[%clk
0:00:13.1]} 41. Rg2 {[%clk 0:00:02.3]} 41... Qf1+ {[%clk 0:00:12.2]} 42. Rg1
{[%clk 0:00:02.6]} 42... Qxh3# {[%clk 0:00:12.5]} 0-1

[Event "*** Titled Tuesday Blitz"]
[Site "Chess.com"]
[Date "2020.10.27"]
[Round "9"]
[White "Mimsychess"]
[Black "BlackBoarder"]
[Result "0-1"]
[WhiteElo "2326"]
[BlackElo "2566"]
[TimeControl "180+1"]
[EndTime "11:45:52 PDT"]
[Termination "BlackBoarder won by resignation"]

1. Nf3 {[%clk 0:02:59.7]} 1... Nf6 {[%clk 0:02:59.1]} 2. c4 {[%clk 0:02:59.4]}
2... e6 {[%clk 0:02:57.1]} 3. g3 {[%clk 0:02:58.4]} 3... d5 {[%clk 0:02:57.4]}
4. d4 {[%clk 0:02:57.4]} 4... dxc4 {[%clk 0:02:56.7]} 5. Bg2 {[%clk 0:02:56.3]}
5... a6 {[%clk 0:02:57.1]} 6. O-O {[%clk 0:02:51.2]} 6... Nc6 {[%clk 0:02:54.2]}
7. e3 {[%clk 0:02:46.5]} 7... Rb8 {[%clk 0:02:53.6]} 8. Qe2 {[%clk 0:02:45.4]}
8... b5 {[%clk 0:02:53.2]} 9. Rd1 {[%clk 0:02:45.8]} 9... Be7 {[%clk 0:02:41]}
10. e4 {[%clk 0:02:37.3]} 10... O-O {[%clk 0:02:38.4]} 11. d5 {[%clk 0:02:26.9]}
11... exd5 {[%clk 0:02:37.9]} 12. exd5 {[%clk 0:02:14.5]} 12... Nb4 {[%clk
0:02:30.7]} 13. Nc3 {[%clk 0:02:10.7]} 13... Bb7 {[%clk 0:02:18.5]} 14. Ne5
{[%clk 0:02:10.4]} 14... Re8 {[%clk 0:02:04.6]} 15. a3 {[%clk 0:02:10.2]} 15...
Bd6 {[%clk 0:01:48]} 16. axb4 {[%clk 0:01:59.5]} 16... Rxe5 {[%clk 0:01:45.7]}
17. Qc2 {[%clk 0:01:59]} 17... Bxb4 {[%clk 0:01:39.5]} 18. Bf4 {[%clk
0:01:55.4]} 18... Re8 {[%clk 0:01:34.6]} 19. d6 {[%clk 0:01:46]} 19... Bxd6
{[%clk 0:01:26.6]} 20. Bxb7 {[%clk 0:01:45.8]} 20... Rxb7 {[%clk 0:01:26.8]} 21.
Rxa6 {[%clk 0:01:46]} 21... b4 {[%clk 0:01:02.1]} 22. Na4 {[%clk 0:01:28.4]}
22... c3 {[%clk 0:00:35]} 23. Bxd6 {[%clk 0:01:06.6]} 23... cxd6 {[%clk
0:00:33.9]} 24. Raxd6 {[%clk 0:01:06.6]} 24... Qa8 {[%clk 0:00:25.7]} 25. Nc5
{[%clk 0:00:54.7]} 25... Rc7 {[%clk 0:00:22.5]} 26. Nb3 {[%clk 0:00:48.5]} 26...
h6 {[%clk 0:00:19.2]} 27. h3 {[%clk 0:00:47.1]} 27... Qf3 {[%clk 0:00:15.7]} 28.
Nd4 {[%clk 0:00:43.9]} 28... Qb7 {[%clk 0:00:11.8]} 29. bxc3 {[%clk 0:00:42.6]}
29... bxc3 {[%clk 0:00:11.5]} 30. Rb1 {[%clk 0:00:41.4]} 30... Qa8 {[%clk
0:00:06.8]} 31. Nf5 {[%clk 0:00:40.3]} 31... Qa5 {[%clk 0:00:05.5]} 32. Rxf6
{[%clk 0:00:37.7]} 32... gxf6 {[%clk 0:00:05.4]} 33. Nxh6+ {[%clk 0:00:38.2]}
33... Kg7 {[%clk 0:00:05.4]} 34. Nf5+ {[%clk 0:00:38.5]} 34... Kg8 {[%clk
0:00:05]} 35. Nh6+ {[%clk 0:00:32.2]} 35... Kg7 {[%clk 0:00:05.4]} 36. Nf5+
{[%clk 0:00:32.6]} 36... Kf8 {[%clk 0:00:05.9]} 37. Qc1 {[%clk 0:00:30.2]} 37...
Qxf5 {[%clk 0:00:03.4]} 38. Qh6+ {[%clk 0:00:30.1]} 38... Kg8 {[%clk 0:00:03.8]}
39. Rc1 {[%clk 0:00:30.3]} 39... c2 {[%clk 0:00:04.2]} 40. Kh2 {[%clk
0:00:29.9]} 40... Rb7 {[%clk 0:00:04]} 41. Qd2 {[%clk 0:00:27.2]} 41... Rc8
{[%clk 0:00:04.1]} 42. h4 {[%clk 0:00:27]} 42... Rb1 {[%clk 0:00:03.7]} 43. h5
{[%clk 0:00:27.4]} 43... Rxc1 {[%clk 0:00:03.7]} 44. Qxc1 {[%clk 0:00:27.5]}
44... Qxh5+ {[%clk 0:00:04.1]} 45. Kg2 {[%clk 0:00:27.3]} 45... Qd1 {[%clk
0:00:04.3]} 0-1

[Event "*** Titled Tuesday Blitz"]
[Site "Chess.com"]
[Date "2020.10.27"]
[Round "9"]
[White "Infernal_XaM"]
[Black "ChessWarrior7197"]
[Result "0-1"]
[WhiteElo "2845"]
[BlackElo "2981"]
[TimeControl "180+1"]
[EndTime "11:45:53 PDT"]
[Termination "ChessWarrior7197 won by resignation"]

1. d4 {[%clk 0:03:00.9]} 1... d5 {[%clk 0:03:00]} 2. Nf3 {[%clk 0:03:00.9]} 2...
Nf6 {[%clk 0:02:59.9]} 3. c4 {[%clk 0:03:01.1]} 3... c6 {[%clk 0:03:00.3]} 4. e3
{[%clk 0:03:00.8]} 4... e6 {[%clk 0:03:00.2]} 5. Nc3 {[%clk 0:02:58.8]} 5...
Nbd7 {[%clk 0:02:59]} 6. Bd2 {[%clk 0:02:58.4]} 6... Bd6 {[%clk 0:02:59.1]} 7.
Qc2 {[%clk 0:02:58.5]} 7... O-O {[%clk 0:02:59.4]} 8. Be2 {[%clk 0:02:52.6]}
8... dxc4 {[%clk 0:02:58.8]} 9. Bxc4 {[%clk 0:02:52.8]} 9... b5 {[%clk
0:02:58.8]} 10. Bd3 {[%clk 0:02:53.2]} 10... Bb7 {[%clk 0:02:59.4]} 11. a3
{[%clk 0:02:48.4]} 11... a6 {[%clk 0:02:56.5]} 12. b4 {[%clk 0:02:47.8]} 12...
Rc8 {[%clk 0:02:55.9]} 13. Ng5 {[%clk 0:02:35.4]} 13... h6 {[%clk 0:02:38.3]}
14. Nge4 {[%clk 0:02:35.4]} 14... Be7 {[%clk 0:02:36.6]} 15. Nc5 {[%clk
0:02:34.5]} 15... Bxc5 {[%clk 0:02:26.3]} 16. dxc5 {[%clk 0:02:34]} 16... Qe7
{[%clk 0:02:21.1]} 17. O-O {[%clk 0:02:33.1]} 17... Rcd8 {[%clk 0:02:21.6]} 18.
Rfd1 {[%clk 0:02:10.5]} 18... e5 {[%clk 0:02:22]} 19. Bf1 {[%clk 0:02:05.1]}
19... Bc8 {[%clk 0:02:19.8]} 20. Ne4 {[%clk 0:01:59.6]} 20... Nxe4 {[%clk
0:02:19]} 21. Qxe4 {[%clk 0:01:59.8]} 21... Qe6 {[%clk 0:01:34.9]} 22. Bc3
{[%clk 0:01:54.2]} 22... f5 {[%clk 0:01:35.5]} 23. Qh4 {[%clk 0:01:47.7]} 23...
Nf6 {[%clk 0:01:35.8]} 24. Qg3 {[%clk 0:01:40.1]} 24... f4 {[%clk 0:01:35.8]}
25. exf4 {[%clk 0:01:38]} 25... Ne4 {[%clk 0:01:36.1]} 26. Qe3 {[%clk
0:01:32.3]} 26... exf4 {[%clk 0:01:35.2]} 27. Qe1 {[%clk 0:01:27.2]} 27... f3
{[%clk 0:01:31.7]} 28. g3 {[%clk 0:00:57.1]} 28... Rde8 {[%clk 0:01:31.8]} 29.
Rd4 {[%clk 0:00:47.8]} 29... Qg6 {[%clk 0:01:31.8]} 30. Qc1 {[%clk 0:00:41.9]}
30... Ng5 {[%clk 0:01:30.8]} 31. Qd2 {[%clk 0:00:36.9]} 31... Nh3+ {[%clk
0:01:28.3]} 32. Kh1 {[%clk 0:00:23.2]} 32... Qh5 {[%clk 0:01:07.5]} 33. Re1
{[%clk 0:00:17.4]} 33... Re2 {[%clk 0:00:37.5]} 34. Bxe2 {[%clk 0:00:17.1]}
34... Nxf2+ {[%clk 0:00:37.5]} 35. Kg1 {[%clk 0:00:17.2]} 35... Ng4 {[%clk
0:00:33.6]} 36. Bxf3 {[%clk 0:00:15.9]} 36... Rxf3 {[%clk 0:00:28.1]} 37. Rd8+
{[%clk 0:00:15.8]} 37... Kh7 {[%clk 0:00:28.7]} 38. Re7 {[%clk 0:00:15.6]} 38...
Rxc3 {[%clk 0:00:24.2]} 39. Rxg7+ {[%clk 0:00:06.4]} 39... Kxg7 {[%clk
0:00:25.1]} 40. Qxc3+ {[%clk 0:00:07.1]} 40... Kh7 {[%clk 0:00:17]} 41. Qh8+
{[%clk 0:00:07]} 41... Kg6 {[%clk 0:00:17.1]} 42. Rd7 {[%clk 0:00:06.4]} 42...
Qxh2+ {[%clk 0:00:15.4]} 0-1

[Event "*** Titled Tuesday Blitz"]
[Site "Chess.com"]
[Date "2020.10.27"]
[Round "9"]
[White "silverback96"]
[Black "SanchezKelvin"]
[Result "1-0"]
[WhiteElo "2246"]
[BlackElo "2366"]
[TimeControl "180+1"]
[EndTime "11:45:53 PDT"]
[Termination "silverback96 won by resignation"]

1. e4 {[%clk 0:03:00.3]} 1... e5 {[%clk 0:02:58.3]} 2. Nf3 {[%clk 0:02:59.8]}
2... Nc6 {[%clk 0:02:58.3]} 3. Bc4 {[%clk 0:02:59.2]} 3... Bc5 {[%clk
0:02:57.7]} 4. O-O {[%clk 0:02:58]} 4... Nf6 {[%clk 0:02:57.3]} 5. d4 {[%clk
0:02:58.3]} 5... Bxd4 {[%clk 0:02:54.2]} 6. Nxd4 {[%clk 0:02:58]} 6... Nxd4
{[%clk 0:02:53.7]} 7. f4 {[%clk 0:02:58.3]} 7... d6 {[%clk 0:02:53.4]} 8. fxe5
{[%clk 0:02:58.2]} 8... dxe5 {[%clk 0:02:53.7]} 9. Bg5 {[%clk 0:02:58.4]} 9...
Be6 {[%clk 0:02:52.3]} 10. Na3 {[%clk 0:02:57.1]} 10... Qe7 {[%clk 0:02:47.5]}
11. c3 {[%clk 0:02:52.1]} 11... Bxc4 {[%clk 0:02:45.8]} 12. Bxf6 {[%clk
0:02:51.2]} 12... gxf6 {[%clk 0:02:41.2]} 13. Nxc4 {[%clk 0:02:50]} 13... Ne6
{[%clk 0:02:34]} 14. Ne3 {[%clk 0:02:43.3]} 14... Rd8 {[%clk 0:02:21.5]} 15. Nd5
{[%clk 0:02:38.6]} 15... Qc5+ {[%clk 0:02:11]} 16. Kh1 {[%clk 0:02:38]} 16...
Nf4 {[%clk 0:01:58]} 17. Nxf6+ {[%clk 0:02:02.1]} 17... Ke7 {[%clk 0:01:52.6]}
18. Nd5+ {[%clk 0:02:03]} 18... Nxd5 {[%clk 0:01:50.8]} 19. exd5 {[%clk
0:02:03.9]} 19... Qxd5 {[%clk 0:01:50.6]} 20. Qh5 {[%clk 0:02:04.8]} 20... f6
{[%clk 0:01:42.5]} 21. Rae1 {[%clk 0:02:01.2]} 21... Qe6 {[%clk 0:01:37.3]} 22.
Qh6 {[%clk 0:01:59]} 22... Rdf8 {[%clk 0:01:33.9]} 23. Qg7+ {[%clk 0:01:40.8]}
23... Kd8 {[%clk 0:01:16.1]} 24. Rd1+ {[%clk 0:01:19.1]} 24... Kc8 {[%clk
0:01:11.1]} 25. Rd2 {[%clk 0:01:09.9]} 25... Qf7 {[%clk 0:00:56]} 26. Qg4+
{[%clk 0:01:05.4]} 26... f5 {[%clk 0:00:54.6]} 27. Qa4 {[%clk 0:01:04]} 27...
Kb8 {[%clk 0:00:48.5]} 28. Rd7 {[%clk 0:01:02.1]} 28... Qe6 {[%clk 0:00:31.4]}
29. Rfd1 {[%clk 0:01:01]} 29... a6 {[%clk 0:00:26.7]} 30. R1d5 {[%clk 0:00:58]}
30... Rhg8 {[%clk 0:00:16]} 31. Qc4 {[%clk 0:00:53.2]} 31... Qc6 {[%clk
0:00:11.5]} 32. Qxc6 {[%clk 0:00:52.5]} 32... bxc6 {[%clk 0:00:11.9]} 33. Rxe5
{[%clk 0:00:53.4]} 33... Rd8 {[%clk 0:00:11.9]} 34. Rxd8+ {[%clk 0:00:48.4]}
34... Rxd8 {[%clk 0:00:12.8]} 35. h4 {[%clk 0:00:47.5]} 35... Rd2 {[%clk
0:00:12.7]} 36. Rxf5 {[%clk 0:00:46.6]} 36... Rxb2 {[%clk 0:00:12.9]} 37. Rh5
{[%clk 0:00:42.4]} 37... Rxa2 {[%clk 0:00:12.9]} 38. Rxh7 {[%clk 0:00:42.7]}
38... a5 {[%clk 0:00:13]} 39. Rh5 {[%clk 0:00:39.3]} 39... Kb7 {[%clk
0:00:10.1]} 40. Rg5 {[%clk 0:00:38.7]} 40... Kb6 {[%clk 0:00:10.4]} 41. h5
{[%clk 0:00:38.9]} 41... a4 {[%clk 0:00:10.8]} 42. h6 {[%clk 0:00:39]} 42... a3
{[%clk 0:00:09.8]} 43. h7 {[%clk 0:00:39.2]} 43... Ra1+ {[%clk 0:00:09.8]} 44.
Kh2 {[%clk 0:00:38.8]} 44... a2 {[%clk 0:00:03.7]} 45. h8=Q {[%clk 0:00:38.9]}
45... Rb1 {[%clk 0:00:03.7]} 46. Qd4+ {[%clk 0:00:38.3]} 46... Kb7 {[%clk
0:00:03.4]} 47. Ra5 {[%clk 0:00:36.3]} 47... a1=Q {[%clk 0:00:02.5]} 48. Rxa1
{[%clk 0:00:35.8]} 48... Rxa1 {[%clk 0:00:03.4]} 1-0

[Event "*** Titled Tuesday Blitz"]
[Site "Chess.com"]
[Date "2020.10.27"]
[Round "9"]
[White "gagtemp"]
[Black "reniite"]
[Result "1/2-1/2"]
[WhiteElo "1964"]
[BlackElo "1930"]
[TimeControl "180+1"]
[EndTime "11:45:54 PDT"]
[Termination "Game drawn by repetition"]

1. e4 {[%clk 0:02:50.4]} 1... e5 {[%clk 0:02:59.4]} 2. Nf3 {[%clk 0:02:48.7]}
2... Nc6 {[%clk 0:02:59.8]} 3. Bc4 {[%clk 0:02:48]} 3... Nf6 {[%clk 0:02:59.4]}
4. d3 {[%clk 0:02:47.4]} 4... Bc5 {[%clk 0:02:59.4]} 5. a4 {[%clk 0:02:46.5]}
5... a6 {[%clk 0:02:58.5]} 6. O-O {[%clk 0:02:46.5]} 6... d6 {[%clk 0:02:57.1]}
7. Re1 {[%clk 0:02:46.5]} 7... Bg4 {[%clk 0:02:55.8]} 8. h3 {[%clk 0:02:44.5]}
8... Be6 {[%clk 0:02:52.1]} 9. Bxe6 {[%clk 0:02:40.7]} 9... fxe6 {[%clk
0:02:51.8]} 10. c3 {[%clk 0:02:40.6]} 10... Ba7 {[%clk 0:02:41.1]} 11. Be3
{[%clk 0:02:39.7]} 11... Qd7 {[%clk 0:02:21.7]} 12. Nbd2 {[%clk 0:02:37.3]}
12... O-O {[%clk 0:02:17.9]} 13. b4 {[%clk 0:02:36.4]} 13... Qf7 {[%clk
0:02:08.5]} 14. b5 {[%clk 0:02:14.5]} 14... Bxe3 {[%clk 0:02:06.3]} 15. Rxe3
{[%clk 0:02:00.6]} 15... Ne7 {[%clk 0:02:04.7]} 16. Nf1 {[%clk 0:01:49.5]} 16...
Ng6 {[%clk 0:01:56]} 17. N1h2 {[%clk 0:01:47.2]} 17... Nf4 {[%clk 0:01:49.8]}
18. d4 {[%clk 0:01:36.2]} 18... exd4 {[%clk 0:01:12.1]} 19. Nxd4 {[%clk
0:01:35]} 19... Qg6 {[%clk 0:01:07.7]} 20. Rg3 {[%clk 0:01:08.7]} 20... Qxe4
{[%clk 0:01:04.4]} 21. Qb3 {[%clk 0:00:52.8]} 21... d5 {[%clk 0:00:46.7]} 22.
Nhf3 {[%clk 0:00:43.2]} 22... N6h5 {[%clk 0:00:35.2]} 23. Ng5 {[%clk 0:00:33.1]}
23... Qg6 {[%clk 0:00:28.6]} 24. Rg4 {[%clk 0:00:31.4]} 24... Qh6 {[%clk
0:00:18.4]} 25. Re1 {[%clk 0:00:30.3]} 25... Rae8 {[%clk 0:00:17.4]} 26. g3
{[%clk 0:00:27.8]} 26... e5 {[%clk 0:00:17]} 27. Ndf3 {[%clk 0:00:24.3]} 27...
Nd3 {[%clk 0:00:14.7]} 28. Re3 {[%clk 0:00:22.8]} 28... e4 {[%clk 0:00:14.7]}
29. Qxd5+ {[%clk 0:00:18.8]} 29... Kh8 {[%clk 0:00:14.1]} 30. Nxe4 {[%clk
0:00:18.7]} 30... Ndf4 {[%clk 0:00:10.9]} 31. Qd4 {[%clk 0:00:18.5]} 31... Nxh3+
{[%clk 0:00:10.5]} 32. Kg2 {[%clk 0:00:18.2]} 32... Nxf2 {[%clk 0:00:10.7]} 33.
Kxf2 {[%clk 0:00:16.5]} 33... Nf6 {[%clk 0:00:07.1]} 34. Nxf6 {[%clk 0:00:15.6]}
34... Rxe3 {[%clk 0:00:07.1]} 35. Qxe3 {[%clk 0:00:14.9]} 35... Qxf6 {[%clk
0:00:07.7]} 36. Ke2 {[%clk 0:00:14.3]} 36... Qf7 {[%clk 0:00:07.3]} 37. Rf4
{[%clk 0:00:14.4]} 37... Qa2+ {[%clk 0:00:06.7]} 38. Qd2 {[%clk 0:00:14]} 38...
Re8+ {[%clk 0:00:06]} 39. Kd1 {[%clk 0:00:12.6]} 39... Qb1+ {[%clk 0:00:06.3]}
40. Qc1 {[%clk 0:00:12.4]} 40... Qd3+ {[%clk 0:00:06.5]} 41. Qd2 {[%clk
0:00:11.9]} 41... Qb1+ {[%clk 0:00:06.7]} 42. Qc1 {[%clk 0:00:12]} 42... Qd3+
{[%clk 0:00:06.1]} 43. Qd2 {[%clk 0:00:12.1]} 43... Qb1+ {[%clk 0:00:06.2]}
1/2-1/2

[Event "*** Titled Tuesday Blitz"]
[Site "Chess.com"]
[Date "2020.10.27"]
[Round "9"]
[White "TheMagnet"]
[Black "MrChampion_Coach"]
[Result "0-1"]
[WhiteElo "2552"]
[BlackElo "2435"]
[TimeControl "180+1"]
[EndTime "11:45:56 PDT"]
[Termination "MrChampion_Coach won by resignation"]

1. d4 {[%clk 0:03:00.9]} 1... Nf6 {[%clk 0:02:59.3]} 2. c4 {[%clk 0:03:01.1]}
2... e6 {[%clk 0:02:59.9]} 3. Nc3 {[%clk 0:03:01.6]} 3... Bc5 {[%clk 0:03:00.3]}
4. f3 {[%clk 0:03:02.2]} 4... Bb4 {[%clk 0:02:59.8]} 5. e4 {[%clk 0:02:59.4]}
5... d6 {[%clk 0:02:58.4]} 6. Ne2 {[%clk 0:02:55.3]} 6... Nc6 {[%clk 0:02:50.8]}
7. Be3 {[%clk 0:02:52.1]} 7... O-O {[%clk 0:02:43.4]} 8. a3 {[%clk 0:02:52.2]}
8... Bxc3+ {[%clk 0:02:42.9]} 9. Nxc3 {[%clk 0:02:53.1]} 9... e5 {[%clk
0:02:43.4]} 10. d5 {[%clk 0:02:52.5]} 10... Ne7 {[%clk 0:02:39.6]} 11. Bd3
{[%clk 0:02:46.8]} 11... Nh5 {[%clk 0:02:38.7]} 12. Qd2 {[%clk 0:02:41.5]} 12...
f5 {[%clk 0:02:27.5]} 13. exf5 {[%clk 0:02:29.3]} 13... Nxf5 {[%clk 0:02:26.2]}
14. Bxf5 {[%clk 0:02:27.9]} 14... Bxf5 {[%clk 0:02:25]} 15. g4 {[%clk
0:02:27.6]} 15... Qh4+ {[%clk 0:02:21.1]} 16. Bf2 {[%clk 0:02:25.4]} 16... Qh3
{[%clk 0:02:20.5]} 17. gxh5 {[%clk 0:02:04.6]} 17... Qxf3 {[%clk 0:02:14.3]} 18.
Rg1 {[%clk 0:02:03.9]} 18... Qxh5 {[%clk 0:02:05.5]} 19. Qg5 {[%clk 0:01:56.5]}
19... Qf7 {[%clk 0:01:39.9]} 20. O-O-O {[%clk 0:01:49.7]} 20... Bg6 {[%clk
0:01:33.8]} 21. Be3 {[%clk 0:01:45.3]} 21... Qd7 {[%clk 0:01:08.7]} 22. Rdf1
{[%clk 0:01:24.9]} 22... Qh3 {[%clk 0:01:07.4]} 23. Rxf8+ {[%clk 0:01:15.1]}
23... Rxf8 {[%clk 0:01:08.3]} 24. Qg3 {[%clk 0:00:36.1]} 24... Qf5 {[%clk
0:01:05.7]} 25. Qg2 {[%clk 0:00:31.8]} 25... Qd3 {[%clk 0:01:01.8]} 26. Qd2
{[%clk 0:00:29.8]} 26... Qxc4 {[%clk 0:01:00.8]} 27. b4 {[%clk 0:00:20.3]} 27...
Rf3 {[%clk 0:00:48]} 28. Kb2 {[%clk 0:00:16.7]} 28... a5 {[%clk 0:00:42.1]} 29.
bxa5 {[%clk 0:00:15.9]} 29... Qh4 {[%clk 0:00:25.5]} 30. Rg2 {[%clk 0:00:15.3]}
30... Qh3 {[%clk 0:00:22.6]} 31. Re2 {[%clk 0:00:15.6]} 31... Qf5 {[%clk
0:00:22]} 32. Rf2 {[%clk 0:00:14.9]} 32... e4 {[%clk 0:00:19]} 33. Rxf3 {[%clk
0:00:14]} 33... exf3 {[%clk 0:00:19.9]} 34. Qf2 {[%clk 0:00:13.9]} 34... Qd3
{[%clk 0:00:19.6]} 35. h4 {[%clk 0:00:13.8]} 35... h6 {[%clk 0:00:17.5]} 36. Bd4
{[%clk 0:00:12.7]} 36... Kh7 {[%clk 0:00:17.1]} 37. Be3 {[%clk 0:00:12.6]} 37...
Bf5 {[%clk 0:00:14.9]} 38. Bd4 {[%clk 0:00:12.6]} 38... Bg6 {[%clk 0:00:11.4]}
39. Qg1 {[%clk 0:00:12.2]} 39... Qd2+ {[%clk 0:00:09.2]} 40. Ka1 {[%clk
0:00:11.3]} 40... Qc2 {[%clk 0:00:09]} 41. Qf2 {[%clk 0:00:11]} 41... Qb3 {[%clk
0:00:08.2]} 42. Qb2 {[%clk 0:00:11.1]} 42... Qc4 {[%clk 0:00:07.6]} 43. Bf2
{[%clk 0:00:11]} 43... Qf1+ {[%clk 0:00:07.4]} 44. Ka2 {[%clk 0:00:10.5]} 44...
Bd3 {[%clk 0:00:07.9]} 45. Be3 {[%clk 0:00:09.6]} 45... Bc4+ {[%clk 0:00:08.1]}
46. Qb3 {[%clk 0:00:10.2]} 46... Qg2+ {[%clk 0:00:07]} 47. Bd2 {[%clk
0:00:08.7]} 47... Qxd2+ {[%clk 0:00:06.6]} 0-1